[Event "Late-Titled-Tuesday-Blitz-June-18-2024"]
[Site "Chess.com"]
[Date "2024.06.18"]
[Round "8"]
[White "BillCoe"]
[Black "KorolDimitriy75"]
[Result "1-0"]
[WhiteElo "2112"]
[BlackElo "2441"]
[TimeControl "180+1"]
[EndTime "15:28:30 PDT"]
[Termination "BillCoe won on time"]

1. e4 {[%clk 0:03:00.9]} 1... c5 {[%clk 0:02:59.2]} 2. Nf3 {[%clk 0:03:01]} 2...
d6 {[%clk 0:02:59.2]} 3. d4 {[%clk 0:03:01.2]} 3... cxd4 {[%clk 0:03:00.1]} 4.
Nxd4 {[%clk 0:03:01.5]} 4... Nf6 {[%clk 0:03:00.5]} 5. Nc3 {[%clk 0:03:02.2]}
5... g6 {[%clk 0:03:01.4]} 6. f3 {[%clk 0:03:02.2]} 6... Bg7 {[%clk 0:03:01.7]}
7. Be3 {[%clk 0:03:02.9]} 7... O-O {[%clk 0:03:02.4]} 8. Qd2 {[%clk 0:03:03.3]}
8... Nc6 {[%clk 0:03:03.1]} 9. O-O-O {[%clk 0:03:03.4]} 9... d5 {[%clk
0:03:03.4]} 10. Kb1 {[%clk 0:03:03.1]} 10... Nxd4 {[%clk 0:03:02.9]} 11. e5
{[%clk 0:03:01.8]} 11... Nxf3 {[%clk 0:03:02.8]} 12. gxf3 {[%clk 0:02:58.5]}
12... Nh5 {[%clk 0:03:02.4]} 13. Qxd5 {[%clk 0:02:55.4]} 13... Qc7 {[%clk
0:02:54.4]} 14. f4 {[%clk 0:02:49.2]} 14... Be6 {[%clk 0:02:23.2]} 15. Qc5
{[%clk 0:02:48.9]} 15... Qxc5 {[%clk 0:02:22]} 16. Bxc5 {[%clk 0:02:48.2]} 16...
Nxf4 {[%clk 0:01:57.3]} 17. Bxe7 {[%clk 0:02:46.5]} 17... Rfe8 {[%clk
0:01:56.9]} 18. Bf6 {[%clk 0:02:39.1]} 18... Nh5 {[%clk 0:01:14.2]} 19. Bb5
{[%clk 0:02:05.9]} 19... Rec8 {[%clk 0:01:01]} 20. Bd7 {[%clk 0:02:02.3]} 20...
Bxd7 {[%clk 0:00:42.5]} 21. Rxd7 {[%clk 0:02:03.2]} 21... Nxf6 {[%clk
0:00:31.9]} 22. exf6 {[%clk 0:02:03.2]} 22... Bxf6 {[%clk 0:00:32.2]} 23. Nd5
{[%clk 0:02:03.8]} 23... Bh4 {[%clk 0:00:20.2]} 24. Rxb7 {[%clk 0:01:44.6]}
24... Rab8 {[%clk 0:00:18.8]} 25. Rxa7 {[%clk 0:01:36.9]} 25... Rc5 {[%clk
0:00:18]} 26. Ne3 {[%clk 0:01:12.5]} 26... Bf2 {[%clk 0:00:16.8]} 27. Nd1 {[%clk
0:01:10.6]} 27... Bd4 {[%clk 0:00:15.8]} 28. b3 {[%clk 0:01:09.3]} 28... Rxc2
{[%clk 0:00:15]} 29. Rxf7 {[%clk 0:01:02.3]} 29... Rd2 {[%clk 0:00:13.1]} 30.
Rd7 {[%clk 0:00:57.8]} 30... Ra8 {[%clk 0:00:12]} 31. a4 {[%clk 0:00:56.8]}
31... Rb8 {[%clk 0:00:12]} 32. Kc1 {[%clk 0:00:52.1]} 32... Rd3 {[%clk
0:00:08.5]} 33. Kc2 {[%clk 0:00:52.3]} 33... Rbxb3 {[%clk 0:00:06.2]} 34. Re1
{[%clk 0:00:41.5]} 1-0

[Event "Late-Titled-Tuesday-Blitz-June-18-2024"]
[Site "Chess.com"]
[Date "2024.06.18"]
[Round "8"]
[White "alexrustemov"]
[Black "Meri-Arabidze"]
[Result "0-1"]
[WhiteElo "2846"]
[BlackElo "2690"]
[TimeControl "180+1"]
[EndTime "15:28:32 PDT"]
[Termination "Meri-Arabidze won by resignation"]

1. d4 {[%clk 0:03:00.9]} 1... Nf6 {[%clk 0:02:59.8]} 2. c4 {[%clk 0:03:01.2]}
2... e6 {[%clk 0:03:00.3]} 3. Nf3 {[%clk 0:03:01.4]} 3... Bb4+ {[%clk
0:03:00.4]} 4. Bd2 {[%clk 0:03:01.2]} 4... a5 {[%clk 0:03:00.5]} 5. g3 {[%clk
0:03:00.4]} 5... O-O {[%clk 0:02:59.8]} 6. Bg2 {[%clk 0:03:00.5]} 6... d5 {[%clk
0:03:00.1]} 7. Qc2 {[%clk 0:02:59.5]} 7... b6 {[%clk 0:02:54.1]} 8. a3 {[%clk
0:02:54.2]} 8... Bxd2+ {[%clk 0:02:53.3]} 9. Nbxd2 {[%clk 0:02:53.7]} 9... a4
{[%clk 0:02:47.1]} 10. O-O {[%clk 0:02:47.7]} 10... c6 {[%clk 0:02:44.5]} 11.
Ne5 {[%clk 0:02:41.6]} 11... Bb7 {[%clk 0:02:44.2]} 12. Rac1 {[%clk 0:02:40.1]}
12... Nfd7 {[%clk 0:02:38.5]} 13. Nd3 {[%clk 0:02:37.9]} 13... Nf6 {[%clk
0:02:29.4]} 14. e3 {[%clk 0:02:32.8]} 14... Nbd7 {[%clk 0:02:27.7]} 15. Rfd1
{[%clk 0:02:32.1]} 15... Qe7 {[%clk 0:02:25.1]} 16. Nf3 {[%clk 0:02:31.1]} 16...
Rfc8 {[%clk 0:02:10.6]} 17. Nfe5 {[%clk 0:02:23.7]} 17... Nxe5 {[%clk
0:02:10.6]} 18. Nxe5 {[%clk 0:02:22.8]} 18... c5 {[%clk 0:02:06.5]} 19. cxd5
{[%clk 0:01:57.9]} 19... Bxd5 {[%clk 0:02:07.1]} 20. Bxd5 {[%clk 0:01:50.4]}
20... exd5 {[%clk 0:02:08]} 21. Qf5 {[%clk 0:01:39.8]} 21... g6 {[%clk
0:02:02.3]} 22. Qf3 {[%clk 0:01:34.3]} 22... Kg7 {[%clk 0:01:57.2]} 23. Nd3
{[%clk 0:01:31.4]} 23... cxd4 {[%clk 0:01:48.9]} 24. exd4 {[%clk 0:01:30.4]}
24... Qe4 {[%clk 0:01:44.9]} 25. Qxe4 {[%clk 0:01:28]} 25... dxe4 {[%clk
0:01:32.8]} 26. Nb4 {[%clk 0:01:27.6]} 26... Rxc1 {[%clk 0:01:19.9]} 27. Rxc1
{[%clk 0:01:27.3]} 27... Rd8 {[%clk 0:01:19.6]} 28. Rd1 {[%clk 0:01:02.3]} 28...
Nd5 {[%clk 0:01:15.7]} 29. Nxd5 {[%clk 0:00:57.1]} 29... Rxd5 {[%clk 0:01:16.6]}
30. Kf1 {[%clk 0:00:56.5]} 30... f5 {[%clk 0:01:13.5]} 31. Ke2 {[%clk
0:00:56.4]} 31... Kf6 {[%clk 0:01:09.2]} 32. Rd2 {[%clk 0:00:52.8]} 32... Ke6
{[%clk 0:01:05.4]} 33. h4 {[%clk 0:00:51.3]} 33... Rb5 {[%clk 0:01:02]} 34. h5
{[%clk 0:00:36.1]} 34... gxh5 {[%clk 0:00:53.7]} 35. Ke3 {[%clk 0:00:35.7]}
35... Rb3+ {[%clk 0:00:49.8]} 36. Kf4 {[%clk 0:00:35.8]} 36... Kf6 {[%clk
0:00:47.3]} 0-1

[Event "Late-Titled-Tuesday-Blitz-June-18-2024"]
[Site "Chess.com"]
[Date "2024.06.18"]
[Round "8"]
[White "Oleksandr_Bortnyk"]
[Black "JoakimVonAnd"]
[Result "1-0"]
[WhiteElo "3051"]
[BlackElo "2746"]
[TimeControl "180+1"]
[EndTime "15:28:36 PDT"]
[Termination "Oleksandr_Bortnyk won on time"]

1. e4 {[%clk 0:03:00.9]} 1... c6 {[%clk 0:02:59.3]} 2. d4 {[%clk 0:02:59.7]}
2... d5 {[%clk 0:03:00.2]} 3. Nc3 {[%clk 0:03:00.4]} 3... dxe4 {[%clk
0:02:59.4]} 4. Nxe4 {[%clk 0:03:01.3]} 4... Bf5 {[%clk 0:02:59.8]} 5. Ng3 {[%clk
0:03:01.5]} 5... Bg6 {[%clk 0:03:00.1]} 6. h4 {[%clk 0:02:59.2]} 6... h6 {[%clk
0:03:00.4]} 7. Nh3 {[%clk 0:02:57.7]} 7... e6 {[%clk 0:02:59.9]} 8. Nf4 {[%clk
0:02:57.9]} 8... Bh7 {[%clk 0:03:00.4]} 9. Nfh5 {[%clk 0:02:58.2]} 9... Nd7
{[%clk 0:02:55.7]} 10. c3 {[%clk 0:02:58.5]} 10... Ngf6 {[%clk 0:02:55.9]} 11.
Bc4 {[%clk 0:02:50.1]} 11... Nxh5 {[%clk 0:02:55.6]} 12. Nxh5 {[%clk 0:02:51]}
12... Nf6 {[%clk 0:02:55.8]} 13. Bf4 {[%clk 0:02:47.6]} 13... Nxh5 {[%clk
0:02:48.5]} 14. Qxh5 {[%clk 0:02:48.5]} 14... Bd6 {[%clk 0:02:44.1]} 15. Be5
{[%clk 0:02:46.8]} 15... Bg6 {[%clk 0:02:38.3]} 16. Qe2 {[%clk 0:02:45.1]} 16...
Bxe5 {[%clk 0:02:32.3]} 17. Qxe5 {[%clk 0:02:46]} 17... Qf6 {[%clk 0:02:32.3]}
18. Qg3 {[%clk 0:02:42.4]} 18... O-O-O {[%clk 0:02:29.2]} 19. O-O {[%clk
0:02:40.3]} 19... Bf5 {[%clk 0:02:21.3]} 20. Rfe1 {[%clk 0:02:40.7]} 20... g5
{[%clk 0:02:20.6]} 21. h5 {[%clk 0:02:41.3]} 21... Qe7 {[%clk 0:01:46.6]} 22.
Re5 {[%clk 0:02:40.4]} 22... Qc7 {[%clk 0:01:44]} 23. Rae1 {[%clk 0:02:39.3]}
23... Rhg8 {[%clk 0:01:38.5]} 24. b4 {[%clk 0:02:36.8]} 24... Kb8 {[%clk
0:01:31.7]} 25. a4 {[%clk 0:02:31.5]} 25... Rge8 {[%clk 0:01:12.9]} 26. Qf3
{[%clk 0:02:29.7]} 26... g4 {[%clk 0:00:51.6]} 27. Qe3 {[%clk 0:02:08]} 27...
Rg8 {[%clk 0:00:35.8]} 28. Qxh6 {[%clk 0:02:05.5]} 28... Rh8 {[%clk 0:00:36.1]}
29. Qg5 {[%clk 0:01:55.9]} 29... Rdg8 {[%clk 0:00:35.8]} 30. Qh4 {[%clk
0:01:56.3]} 30... Qd8 {[%clk 0:00:30.8]} 31. Qxd8+ {[%clk 0:01:40.8]} 31... Rxd8
{[%clk 0:00:31.7]} 32. Rxf5 {[%clk 0:01:41.6]} 32... exf5 {[%clk 0:00:29.5]} 33.
Bxf7 {[%clk 0:01:42.5]} 33... Rdf8 {[%clk 0:00:19]} 34. Bg6 {[%clk 0:01:41.2]}
34... Kc7 {[%clk 0:00:19.5]} 35. Re7+ {[%clk 0:01:40]} 35... Kc8 {[%clk
0:00:19]} 36. Re5 {[%clk 0:01:36.4]} 36... Kc7 {[%clk 0:00:17.6]} 37. Re7+
{[%clk 0:01:34.6]} 37... Kc8 {[%clk 0:00:17.4]} 38. a5 {[%clk 0:01:29.3]} 38...
a6 {[%clk 0:00:15.6]} 39. Re5 {[%clk 0:01:25.8]} 39... Kc7 {[%clk 0:00:15.4]}
40. Kh2 {[%clk 0:01:26.2]} 40... f4 {[%clk 0:00:15.7]} 41. Rg5 {[%clk
0:01:26.7]} 41... g3+ {[%clk 0:00:13]} 42. fxg3 {[%clk 0:01:27.6]} 42... fxg3+
{[%clk 0:00:13.9]} 43. Kxg3 {[%clk 0:01:27.1]} 43... Rf1 {[%clk 0:00:14.5]} 44.
Re5 {[%clk 0:01:26]} 44... Rc1 {[%clk 0:00:14.7]} 45. Re3 {[%clk 0:01:24]} 45...
Kd6 {[%clk 0:00:06.7]} 46. Kh4 {[%clk 0:01:21.9]} 46... Rg1 {[%clk 0:00:05.2]}
47. g4 {[%clk 0:01:22]} 47... Rh1+ {[%clk 0:00:04]} 48. Kg5 {[%clk 0:01:22.4]}
48... Rf1 {[%clk 0:00:04.7]} 49. h6 {[%clk 0:01:22.3]} 49... Rh1 {[%clk
0:00:04]} 50. h7 {[%clk 0:01:21.6]} 50... Rf8 {[%clk 0:00:04.3]} 51. Bh5 {[%clk
0:01:21.2]} 51... Rhf1 {[%clk 0:00:04]} 52. Kh6 {[%clk 0:01:19.8]} 52... R1f6+
{[%clk 0:00:04]} 53. Kg7 {[%clk 0:01:20]} 53... Rf4 {[%clk 0:00:03.2]} 54. h8=Q
{[%clk 0:01:18]} 1-0

[Event "Late-Titled-Tuesday-Blitz-June-18-2024"]
[Site "Chess.com"]
[Date "2024.06.18"]
[Round "8"]
[White "sansanathalia"]
[Black "Colombiano07"]
[Result "0-1"]
[WhiteElo "2441"]
[BlackElo "2342"]
[TimeControl "180+1"]
[EndTime "15:28:39 PDT"]
[Termination "Colombiano07 won by resignation"]

1. e4 {[%clk 0:03:00.9]} 1... c5 {[%clk 0:02:59.7]} 2. Nf3 {[%clk 0:03:00.1]}
2... Nc6 {[%clk 0:03:00.3]} 3. c3 {[%clk 0:02:59]} 3... d5 {[%clk 0:02:59.7]} 4.
exd5 {[%clk 0:02:54.9]} 4... Qxd5 {[%clk 0:03:00.6]} 5. d4 {[%clk 0:02:54.5]}
5... Bf5 {[%clk 0:03:01.2]} 6. Be3 {[%clk 0:02:48.7]} 6... cxd4 {[%clk
0:03:00.8]} 7. cxd4 {[%clk 0:02:48]} 7... Bxb1 {[%clk 0:03:01.5]} 8. Rxb1 {[%clk
0:02:46.5]} 8... e6 {[%clk 0:03:02.1]} 9. a3 {[%clk 0:02:41]} 9... Nf6 {[%clk
0:03:01.8]} 10. h3 {[%clk 0:02:34.4]} 10... Bd6 {[%clk 0:03:01.5]} 11. Bd3
{[%clk 0:02:27.9]} 11... O-O {[%clk 0:03:01]} 12. O-O {[%clk 0:02:25.7]} 12...
Rad8 {[%clk 0:03:00.3]} 13. Qc2 {[%clk 0:01:56.3]} 13... e5 {[%clk 0:02:58.9]}
14. Bc4 {[%clk 0:01:43.2]} 14... Qe4 {[%clk 0:02:50.3]} 15. Qxe4 {[%clk
0:01:22.4]} 15... Nxe4 {[%clk 0:02:49.7]} 16. dxe5 {[%clk 0:01:19.7]} 16... Nxe5
{[%clk 0:02:50.6]} 17. Nxe5 {[%clk 0:01:19.6]} 17... Bxe5 {[%clk 0:02:51.5]} 18.
Rfd1 {[%clk 0:01:12.9]} 18... b6 {[%clk 0:02:36.9]} 19. Bd5 {[%clk 0:00:56.2]}
19... Nf6 {[%clk 0:02:31.8]} 20. Bb3 {[%clk 0:00:42.2]} 20... Rfe8 {[%clk
0:02:23.7]} 21. Ba4 {[%clk 0:00:32.3]} 21... Rf8 {[%clk 0:02:17.6]} 22. Rxd8
{[%clk 0:00:26.2]} 22... Rxd8 {[%clk 0:02:17.1]} 23. b4 {[%clk 0:00:26]} 23...
Rd3 {[%clk 0:02:12]} 24. Rd1 {[%clk 0:00:23.9]} 24... Rxd1+ {[%clk 0:02:06.6]}
25. Bxd1 {[%clk 0:00:23.4]} 25... Nd5 {[%clk 0:02:04.5]} 26. Bd2 {[%clk
0:00:21.9]} 26... Bb2 {[%clk 0:01:57.7]} 27. a4 {[%clk 0:00:20]} 27... Bc3
{[%clk 0:01:56.3]} 28. Bxc3 {[%clk 0:00:17.7]} 28... Nxc3 {[%clk 0:01:57.2]} 29.
Bb3 {[%clk 0:00:17.1]} 29... Kf8 {[%clk 0:01:57.4]} 30. Kf1 {[%clk 0:00:16.6]}
30... f6 {[%clk 0:01:56.3]} 31. f3 {[%clk 0:00:16.4]} 31... Ke7 {[%clk
0:01:53.3]} 32. Ke1 {[%clk 0:00:16.7]} 32... Kd6 {[%clk 0:01:53.2]} 33. Kd2
{[%clk 0:00:17.3]} 33... Nd5 {[%clk 0:01:53.6]} 34. Bxd5 {[%clk 0:00:17]} 34...
Kxd5 {[%clk 0:01:54.5]} 35. Kd3 {[%clk 0:00:17.7]} 35... g5 {[%clk 0:01:52.4]}
36. g3 {[%clk 0:00:14.1]} 36... f5 {[%clk 0:01:52]} 37. g4 {[%clk 0:00:12.4]}
37... fxg4 {[%clk 0:01:34.9]} 38. hxg4 {[%clk 0:00:12.4]} 38... a6 {[%clk
0:01:24]} 39. Kc3 {[%clk 0:00:11.4]} 39... b5 {[%clk 0:01:16.8]} 40. axb5 {[%clk
0:00:11.4]} 40... axb5 {[%clk 0:01:17.7]} 41. Kd3 {[%clk 0:00:12.1]} 41... h6
{[%clk 0:01:17.6]} 42. Ke3 {[%clk 0:00:12.4]} 42... Kc4 {[%clk 0:01:04.6]} 43.
f4 {[%clk 0:00:10.5]} 43... gxf4+ {[%clk 0:01:05.5]} 44. Kxf4 {[%clk 0:00:09.9]}
44... Kxb4 {[%clk 0:01:06.4]} 45. Kf5 {[%clk 0:00:10.8]} 45... Kc5 {[%clk
0:01:02.2]} 46. Kg6 {[%clk 0:00:11.7]} 46... b4 {[%clk 0:01:02.5]} 47. Kxh6
{[%clk 0:00:12.2]} 47... b3 {[%clk 0:01:03]} 48. g5 {[%clk 0:00:13.1]} 48... b2
{[%clk 0:01:03.9]} 49. g6 {[%clk 0:00:13.2]} 49... b1=Q {[%clk 0:01:04.8]} 50.
Kh7 {[%clk 0:00:11.1]} 50... Kd6 {[%clk 0:01:04.2]} 51. Kh6 {[%clk 0:00:09.6]}
51... Ke7 {[%clk 0:01:03.9]} 0-1

[Event "Late-Titled-Tuesday-Blitz-June-18-2024"]
[Site "Chess.com"]
[Date "2024.06.18"]
[Round "8"]
[White "fabianvivasz"]
[Black "aexmi"]
[Result "0-1"]
[WhiteElo "2459"]
[BlackElo "2289"]
[TimeControl "180+1"]
[EndTime "15:28:39 PDT"]
[Termination "aexmi won by resignation"]

1. e4 {[%clk 0:02:56.6]} 1... c5 {[%clk 0:02:59.5]} 2. Nc3 {[%clk 0:02:55.4]}
2... g6 {[%clk 0:02:56.6]} 3. d4 {[%clk 0:02:55.4]} 3... cxd4 {[%clk 0:02:56.4]}
4. Qxd4 {[%clk 0:02:56.3]} 4... Nf6 {[%clk 0:02:56.4]} 5. Bb5 {[%clk 0:02:55.2]}
5... Nc6 {[%clk 0:02:25.4]} 6. Bxc6 {[%clk 0:02:54.1]} 6... dxc6 {[%clk
0:02:23.4]} 7. Qxd8+ {[%clk 0:02:52.3]} 7... Kxd8 {[%clk 0:02:24.3]} 8. Bf4
{[%clk 0:02:47.4]} 8... Bg7 {[%clk 0:02:04.2]} 9. O-O-O+ {[%clk 0:02:41.6]} 9...
Nd7 {[%clk 0:02:03.5]} 10. Nge2 {[%clk 0:02:38.3]} 10... e5 {[%clk 0:02:03.2]}
11. Be3 {[%clk 0:02:35.1]} 11... Ke7 {[%clk 0:02:01.2]} 12. h4 {[%clk
0:02:30.3]} 12... Nf6 {[%clk 0:01:54]} 13. f4 {[%clk 0:02:23.9]} 13... Ng4
{[%clk 0:01:48.8]} 14. Bc5+ {[%clk 0:02:22.1]} 14... Ke8 {[%clk 0:01:43.6]} 15.
h5 {[%clk 0:02:19.4]} 15... b6 {[%clk 0:01:36.2]} 16. Bg1 {[%clk 0:02:03.9]}
16... Be6 {[%clk 0:01:19.7]} 17. Rf1 {[%clk 0:01:42.8]} 17... Rd8 {[%clk
0:01:10.9]} 18. f5 {[%clk 0:01:39.7]} 18... gxf5 {[%clk 0:01:03.9]} 19. exf5
{[%clk 0:01:40.6]} 19... Bc4 {[%clk 0:01:03.7]} 20. Rh4 {[%clk 0:01:35.4]} 20...
Bh6+ {[%clk 0:00:48.8]} 21. Kb1 {[%clk 0:01:33.1]} 21... Rg8 {[%clk 0:00:49.4]}
22. b3 {[%clk 0:01:24.2]} 22... Ba6 {[%clk 0:00:48.3]} 23. Re1 {[%clk
0:01:09.5]} 23... Rd2 {[%clk 0:00:41]} 24. Kb2 {[%clk 0:01:05]} 24... Bd3 {[%clk
0:00:36.3]} 25. Nd4 {[%clk 0:00:55.7]} 25... Kd7 {[%clk 0:00:34]} 26. Nf3 {[%clk
0:00:24.5]} 26... Rxc2+ {[%clk 0:00:33.6]} 27. Ka1 {[%clk 0:00:24.2]} 27... f6
{[%clk 0:00:29.8]} 28. Rd1 {[%clk 0:00:18.5]} 28... Rxc3 {[%clk 0:00:28.2]} 29.
Kb2 {[%clk 0:00:17.7]} 29... Rc2+ {[%clk 0:00:27.9]} 30. Ka1 {[%clk 0:00:15.7]}
30... e4 {[%clk 0:00:22.4]} 31. Be3 {[%clk 0:00:08.7]} 0-1

[Event "Late-Titled-Tuesday-Blitz-June-18-2024"]
[Site "Chess.com"]
[Date "2024.06.18"]
[Round "8"]
[White "AlexeiShirov"]
[Black "vi_pranav"]
[Result "1-0"]
[WhiteElo "2877"]
[BlackElo "3022"]
[TimeControl "180+1"]
[EndTime "15:28:45 PDT"]
[Termination "AlexeiShirov won by resignation"]

1. e4 {[%clk 0:03:00.9]} 1... e5 {[%clk 0:02:59.3]} 2. Nf3 {[%clk 0:02:59.2]}
2... Nc6 {[%clk 0:02:59.5]} 3. Bb5 {[%clk 0:02:58.2]} 3... a6 {[%clk 0:02:57.7]}
4. Ba4 {[%clk 0:02:57.8]} 4... Nf6 {[%clk 0:02:58.2]} 5. O-O {[%clk 0:02:56.3]}
5... b5 {[%clk 0:02:58.4]} 6. Bb3 {[%clk 0:02:54.9]} 6... Bc5 {[%clk 0:02:59.3]}
7. a4 {[%clk 0:02:52]} 7... Rb8 {[%clk 0:02:58.9]} 8. c3 {[%clk 0:02:51.4]} 8...
d6 {[%clk 0:02:58.3]} 9. d4 {[%clk 0:02:51]} 9... Bb6 {[%clk 0:02:58.6]} 10. a5
{[%clk 0:02:50.1]} 10... Ba7 {[%clk 0:02:57.9]} 11. h3 {[%clk 0:02:49.9]} 11...
O-O {[%clk 0:02:58.2]} 12. Be3 {[%clk 0:02:48.9]} 12... Ra8 {[%clk 0:02:58.6]}
13. Nbd2 {[%clk 0:02:46.2]} 13... h6 {[%clk 0:02:57.4]} 14. Re1 {[%clk
0:02:45.7]} 14... Re8 {[%clk 0:02:57.3]} 15. Nf1 {[%clk 0:02:45.1]} 15... Bb7
{[%clk 0:02:30.6]} 16. Ng3 {[%clk 0:02:35.2]} 16... exd4 {[%clk 0:02:27]} 17.
cxd4 {[%clk 0:02:23.9]} 17... Ne7 {[%clk 0:02:26.4]} 18. d5 {[%clk 0:02:17.3]}
18... c5 {[%clk 0:02:25.3]} 19. dxc6 {[%clk 0:02:15.5]} 19... Bxc6 {[%clk
0:02:25.6]} 20. Bxa7 {[%clk 0:02:06.9]} 20... Rxa7 {[%clk 0:02:26.5]} 21. Nd4
{[%clk 0:02:05.3]} 21... Ba8 {[%clk 0:02:19.5]} 22. Qd2 {[%clk 0:01:55.1]} 22...
Rd7 {[%clk 0:02:05.8]} 23. Rad1 {[%clk 0:01:50.2]} 23... Ng6 {[%clk 0:01:57.9]}
24. Ndf5 {[%clk 0:01:32.1]} 24... d5 {[%clk 0:01:57.4]} 25. Qc3 {[%clk
0:01:27.1]} 25... Qc7 {[%clk 0:01:19.9]} 26. Nxh6+ {[%clk 0:01:24.8]} 26... Kh7
{[%clk 0:01:06.4]} 27. Nhf5 {[%clk 0:01:21]} 27... dxe4 {[%clk 0:00:50.3]} 28.
Rxd7 {[%clk 0:01:06.9]} 28... Qxd7 {[%clk 0:00:44.1]} 29. Nxg7 {[%clk
0:01:05.6]} 29... Re5 {[%clk 0:00:42.7]} 30. Rd1 {[%clk 0:00:59.8]} 30... Qc6
{[%clk 0:00:28.6]} 31. N7f5 {[%clk 0:00:58.3]} 31... Rc5 {[%clk 0:00:23.4]} 32.
Qe3 {[%clk 0:00:56.2]} 32... Ng8 {[%clk 0:00:14.1]} 33. Bxf7 {[%clk 0:00:53.3]}
33... Re5 {[%clk 0:00:09.2]} 34. Bxg8+ {[%clk 0:00:45.7]} 34... Kxg8 {[%clk
0:00:09.2]} 35. Qh6 {[%clk 0:00:44.1]} 35... Qf6 {[%clk 0:00:05.3]} 36. Rd8+
{[%clk 0:00:38.6]} 36... Kf7 {[%clk 0:00:03.7]} 37. Qh7+ {[%clk 0:00:35.7]} 1-0

[Event "Late-Titled-Tuesday-Blitz-June-18-2024"]
[Site "Chess.com"]
[Date "2024.06.18"]
[Round "8"]
[White "harshu27"]
[Black "traviscottofficial"]
[Result "1-0"]
[WhiteElo "2568"]
[BlackElo "2742"]
[TimeControl "180+1"]
[EndTime "15:28:49 PDT"]
[Termination "harshu27 won by checkmate"]

1. d4 {[%clk 0:03:00.9]} 1... d5 {[%clk 0:02:57.7]} 2. Bf4 {[%clk 0:02:59.7]}
2... c6 {[%clk 0:02:55.1]} 3. c4 {[%clk 0:02:55.1]} 3... Nf6 {[%clk 0:02:54.2]}
4. Nc3 {[%clk 0:02:54.6]} 4... a6 {[%clk 0:02:52.6]} 5. c5 {[%clk 0:02:48.1]}
5... Nh5 {[%clk 0:02:48.8]} 6. Bd2 {[%clk 0:02:34.1]} 6... e5 {[%clk 0:02:43.6]}
7. dxe5 {[%clk 0:02:11.8]} 7... Bxc5 {[%clk 0:02:40.6]} 8. e4 {[%clk 0:02:08.1]}
8... g6 {[%clk 0:02:35.9]} 9. exd5 {[%clk 0:01:49.9]} 9... O-O {[%clk
0:02:31.9]} 10. Qf3 {[%clk 0:01:46.2]} 10... Re8 {[%clk 0:02:26.7]} 11. O-O-O
{[%clk 0:01:40.6]} 11... Rxe5 {[%clk 0:01:57.5]} 12. g4 {[%clk 0:01:21.9]} 12...
Nf6 {[%clk 0:01:49.3]} 13. Qg3 {[%clk 0:00:51.1]} 13... Rxd5 {[%clk 0:01:35.1]}
14. Nxd5 {[%clk 0:00:43.2]} 14... Nxd5 {[%clk 0:01:15.3]} 15. Bg2 {[%clk
0:00:36.1]} 15... Be6 {[%clk 0:01:14.4]} 16. Ne2 {[%clk 0:00:25.8]} 16... Nd7
{[%clk 0:01:12.2]} 17. Nf4 {[%clk 0:00:17.6]} 17... Nxf4 {[%clk 0:01:09.7]} 18.
Qxf4 {[%clk 0:00:18.3]} 18... Bxa2 {[%clk 0:01:09.6]} 19. Bc3 {[%clk 0:00:17.8]}
19... Bf8 {[%clk 0:00:55.2]} 20. Rxd7 {[%clk 0:00:11.2]} 20... Qxd7 {[%clk
0:00:56.1]} 21. Qf6 {[%clk 0:00:11.3]} 21... Bh6+ {[%clk 0:00:51.3]} 22. Kc2
{[%clk 0:00:08.2]} 22... Kf8 {[%clk 0:00:33.8]} 23. Qh8+ {[%clk 0:00:05.2]}
23... Ke7 {[%clk 0:00:33.7]} 24. Re1+ {[%clk 0:00:05.4]} 24... Be6 {[%clk
0:00:34]} 25. Qxa8 {[%clk 0:00:05.2]} 25... Bf4 {[%clk 0:00:31.4]} 26. Qh8
{[%clk 0:00:04.7]} 26... g5 {[%clk 0:00:25.1]} 27. Qf6+ {[%clk 0:00:04.4]} 27...
Ke8 {[%clk 0:00:25.1]} 28. Rd1 {[%clk 0:00:03.8]} 28... Qe7 {[%clk 0:00:23.2]}
29. Qh8+ {[%clk 0:00:03.7]} 29... Qf8 {[%clk 0:00:23.6]} 30. Rd8+ {[%clk
0:00:04.4]} 30... Kxd8 {[%clk 0:00:23.8]} 31. Qxf8+ {[%clk 0:00:05.3]} 31... Kd7
{[%clk 0:00:24.7]} 32. Bf6 {[%clk 0:00:05.4]} 32... Bd6 {[%clk 0:00:24.1]} 33.
Qd8# {[%clk 0:00:05.6]} 1-0

[Event "Late-Titled-Tuesday-Blitz-June-18-2024"]
[Site "Chess.com"]
[Date "2024.06.18"]
[Round "8"]
[White "sammartin99"]
[Black "pompey831"]
[Result "0-1"]
[WhiteElo "2373"]
[BlackElo "2522"]
[TimeControl "180+1"]
[EndTime "15:28:56 PDT"]
[Termination "pompey831 won on time"]

1. d4 {[%clk 0:03:00.9]} 1... Nf6 {[%clk 0:02:57]} 2. c4 {[%clk 0:03:00.8]} 2...
c5 {[%clk 0:02:56.4]} 3. d5 {[%clk 0:03:01]} 3... b5 {[%clk 0:02:51.8]} 4. cxb5
{[%clk 0:03:01.3]} 4... a6 {[%clk 0:02:51.3]} 5. b6 {[%clk 0:03:01.7]} 5... d6
{[%clk 0:02:50.3]} 6. Nc3 {[%clk 0:03:02]} 6... Nbd7 {[%clk 0:02:50]} 7. e4
{[%clk 0:03:02.4]} 7... g6 {[%clk 0:02:49.1]} 8. Nf3 {[%clk 0:03:02.6]} 8... Bg7
{[%clk 0:02:48.4]} 9. Be2 {[%clk 0:03:02.6]} 9... O-O {[%clk 0:02:46.8]} 10. O-O
{[%clk 0:03:02.4]} 10... a5 {[%clk 0:02:46.3]} 11. a4 {[%clk 0:02:59.9]} 11...
Qxb6 {[%clk 0:02:41]} 12. Nd2 {[%clk 0:02:58.7]} 12... Ba6 {[%clk 0:02:38.4]}
13. Nb5 {[%clk 0:02:54.4]} 13... Qd8 {[%clk 0:02:33.5]} 14. Qc2 {[%clk
0:02:51.1]} 14... Nb6 {[%clk 0:02:29.8]} 15. Nc4 {[%clk 0:02:46.7]} 15... Nxc4
{[%clk 0:02:21.1]} 16. Bxc4 {[%clk 0:02:47.6]} 16... Ne8 {[%clk 0:02:19.8]} 17.
Bg5 {[%clk 0:02:43.7]} 17... Qd7 {[%clk 0:02:17.9]} 18. Rfe1 {[%clk 0:02:30.5]}
18... Nc7 {[%clk 0:02:16.6]} 19. Na3 {[%clk 0:02:21.1]} 19... Rfb8 {[%clk
0:02:14.5]} 20. h3 {[%clk 0:02:15.6]} 20... Bxb2 {[%clk 0:02:07.4]} 21. Ra2
{[%clk 0:02:12.4]} 21... Bxa3 {[%clk 0:02:05.8]} 22. Rxa3 {[%clk 0:02:13.3]}
22... f6 {[%clk 0:02:00.6]} 23. Bd2 {[%clk 0:02:09.1]} 23... Bxc4 {[%clk
0:01:59.5]} 24. Qxc4 {[%clk 0:02:10]} 24... Na6 {[%clk 0:01:59.4]} 25. h4 {[%clk
0:02:02.4]} 25... Nb4 {[%clk 0:01:55.2]} 26. h5 {[%clk 0:01:57.2]} 26... g5
{[%clk 0:01:50.4]} 27. h6 {[%clk 0:01:57.6]} 27... Kf7 {[%clk 0:01:44.7]} 28. f4
{[%clk 0:01:51]} 28... gxf4 {[%clk 0:01:42.6]} 29. Bxf4 {[%clk 0:01:51.4]} 29...
Rg8 {[%clk 0:01:41.3]} 30. Rf3 {[%clk 0:01:37]} 30... Rg4 {[%clk 0:01:29.9]} 31.
e5 {[%clk 0:01:00.2]} 31... dxe5 {[%clk 0:01:28.5]} 32. d6+ {[%clk 0:01:00.3]}
32... e6 {[%clk 0:01:17.5]} 33. Qe4 {[%clk 0:00:57.3]} 33... Rh8 {[%clk
0:01:15.8]} 34. Bxe5 {[%clk 0:00:33.2]} 34... Rxe4 {[%clk 0:01:11.5]} 35. Rxf6+
{[%clk 0:00:33.4]} 35... Ke8 {[%clk 0:01:10.1]} 36. Rxe4 {[%clk 0:00:34.1]}
36... Rf8 {[%clk 0:00:58.9]} 37. Rxf8+ {[%clk 0:00:26.7]} 37... Kxf8 {[%clk
0:00:57.4]} 38. Rf4+ {[%clk 0:00:27.5]} 38... Ke8 {[%clk 0:00:56.6]} 39. Rg4
{[%clk 0:00:26.7]} 39... Qxa4 {[%clk 0:00:52.9]} 40. Rg8+ {[%clk 0:00:23.3]}
40... Kd7 {[%clk 0:00:51.7]} 41. Rg7+ {[%clk 0:00:24]} 41... Kc6 {[%clk
0:00:51.4]} 42. Rc7+ {[%clk 0:00:07.2]} 42... Kb6 {[%clk 0:00:49.9]} 43. d7
{[%clk 0:00:07.7]} 43... Qd1+ {[%clk 0:00:46.7]} 44. Kh2 {[%clk 0:00:07.8]}
44... Nc6 {[%clk 0:00:41.7]} 45. Bg3 {[%clk 0:00:01.2]} 45... e5 {[%clk
0:00:39.9]} 0-1